bitfinex/quotes_BTCUSD_20251214
["timestamp","ask_amount","ask_price","bid_price","bid_amount"]
[1765717298359,0.01626,89391.0,89390.0,0.07894728]
[1765717298567,0.03901,89391.0,89390.0,0.07894728]
[1765717299398,0.22373366,89392.0,89390.0,0.07894728]
[1765717299601,0.01818655,89393.0,89390.0,0.07894728]
[1765717299824,0.007,89393.0,89390.0,0.09174708]
[1765717300029,0.007,89393.0,89391.0,0.22373617]
[1765717300277,0.007,89393.0,89390.0,0.09174708]
[1765717300490,0.0111863,89395.0,89392.0,0.01118668]
[1765717300899,0.12325184,89395.0,89392.0,0.01118668]
[1765717301099,0.0111863,89395.0,89392.0,0.01118668]
[1765717301305,0.01118618,89396.0,89393.0,0.01118655]
[1765717301507,0.11206554,89394.0,89393.0,0.01118655]
[1765717301972,0.11206554,89394.0,89392.0,0.01142899]
[1765717303738,0.12006554,89394.0,89392.0,0.01142899]
[1765717303942,0.01118605,89397.0,89394.0,0.01118643]
[1765717304169,0.05001839,89397.0,89395.0,0.0111863]
[1765717304373,0.05001839,89397.0,89394.0,0.01118643]
[1765717304570,0.05001839,89397.0,89394.0,0.23491302]
[1765717304954,0.01764,89398.0,89396.0,0.23740365]
[1765717305384,0.008,89397.0,89395.0,0.0111863]
[1765717305745,0.01918605,89397.0,89394.0,0.00161287]
[1765717305952,0.11206554,89395.0,89394.0,0.00161287]
[1765717307027,0.11506554,89395.0,89394.0,0.00161287]
[1765717307755,0.12306554,89395.0,89394.0,0.00161287]
[1765717311883,0.12306554,89395.0,89394.0,0.01529287]
[1765717312284,0.12306554,89395.0,89394.0,0.00161287]
[1765717314738,0.12306554,89395.0,89394.0,0.01529287]
[1765717316634,0.011,89395.0,89394.0,0.02897287]
[1765717317295,0.05001839,89404.0,89399.0,0.22371604]
[1765717317497,0.0111853,89403.0,89400.0,0.01118568]
[1765717317696,0.05001839,89404.0,89400.0,0.01118568]
[1765717318594,0.05001839,89404.0,89400.0,0.23489745]
[1765717318797,0.05001839,89404.0,89401.0,0.01118555]
[1765717319113,0.06120357,89404.0,89401.0,0.01118555]
[1765717319681,0.003,89403.0,89401.0,0.01118555]
[1765717320039,0.06120357,89404.0,89401.0,0.01618555]
[1765717320244,0.06220357,89404.0,89401.0,0.01718555]
[1765717320451,0.06220357,89404.0,89401.0,0.01218555]
[1765717320655,0.06120357,89404.0,89401.0,0.01118555]
[1765717320856,0.28490908,89404.0,89401.0,0.006]
[1765717321092,0.28490908,89404.0,89401.0,0.011]
[1765717321093,0.001,89403.0,89401.0,0.011]
[1765717321297,0.22370831,89403.0,89401.0,0.006]
[1765717322100,0.2737267,89403.0,89402.0,0.01368]
[1765717322284,0.05001839,89403.0,89402.0,0.01368]
[1765717322502,0.05001839,89403.0,89401.0,0.005]
[1765717322700,0.05001839,89403.0,89401.0,0.01]
[1765717322938,0.06120369,89403.0,89399.0,0.0111858]
[1765717323217,0.01118543,89402.0,89399.0,0.0111858]
[1765717323415,0.01118568,89400.0,89397.0,0.01118605]
[1765717323619,0.01118605,89397.0,89394.0,0.00161287]
[1765717323845,0.11206554,89395.0,89394.0,0.00161287]
[1765717324796,0.11206554,89395.0,89394.0,0.22534153]
[1765717325455,0.008,89400.0,89397.0,0.01118605]
[1765717325631,0.008,89400.0,89399.0,0.01368]
[1765717325837,0.008,89400.0,89397.0,0.01118605]
[1765717326035,0.01118543,89402.0,89398.0,0.01118593]
[1765717326239,0.02796389,89401.0,89398.0,0.01118593]
[1765717326641,0.02796389,89401.0,89398.0,0.23490458]
[1765717327290,0.02796389,89401.0,89398.0,0.23590458]
[1765717327521,0.005,89400.0,89398.0,0.23590458]
[1765717327933,0.02796389,89401.0,89398.0,0.23590458]
[1765717328860,0.02796389,89401.0,89398.0,0.23490458]
[1765717329262,0.02896389,89401.0,89398.0,0.01318593]
[1765717329431,0.04014944,89401.0,89398.0,0.01318593]
[1765717329672,0.26386259,89401.0,89398.0,0.002]
[1765717329870,0.001,89401.0,89399.0,0.22371377]
[1765717330224,0.001,89401.0,89398.0,0.00361287]
[1765717330697,0.001,89401.0,89398.0,0.00261287]
[1765717330698,0.22371594,89400.0,89398.0,0.00261287]
[1765717330906,0.22371594,89400.0,89398.0,0.00161287]
[1765717332303,0.22371594,89400.0,89399.0,0.002]
[1765717332502,0.001,89401.0,89399.0,0.25468901]
[1765717332715,0.01118443,89410.0,89406.0,0.01118493]
[1765717332917,0.01118468,89408.0,89402.0,0.01118543]
[1765717333098,0.03869784,89408.0,89402.0,0.01118543]
[1765717333327,0.01118518,89404.0,89401.0,0.01118555]
[1765717334084,0.23488146,89407.0,89403.0,0.0111853]
[1765717334293,0.001,89408.0,89403.0,0.0111853]
[1765717334514,0.11206554,89405.0,89404.0,0.23488881]
[1765717335078,0.001,89408.0,89407.0,0.22369613]
[1765717335306,0.001,89408.0,89407.0,0.23737613]
[1765717335643,0.001,89408.0,89407.0,0.25105613]
[1765717336193,0.00038519,89411.0,89407.0,0.25105613]
[1765717336194,0.00038519,89411.0,89409.0,0.22369112]
[1765717336569,0.00038519,89411.0,89410.0,0.01368]
[1765717337864,0.00138519,89411.0,89410.0,0.01768]
[1765717338907,0.00138519,89411.0,89410.0,0.02168]
[1765717339107,0.00038519,89411.0,89410.0,0.01768]
[1765717339314,0.00038519,89411.0,89410.0,0.03136]
[1765717339534,0.00538519,89411.0,89410.0,0.02836]
[1765717339946,0.00738519,89411.0,89410.0,0.02836]
[1765717340354,0.00738519,89411.0,89410.0,0.02997287]
[1765717345999,0.00738519,89411.0,89410.0,0.00261287]
[1765717346476,0.00738519,89411.0,89410.0,0.001]
[1765717346477,0.04768519,89411.0,89410.0,0.001]
[1765717346688,0.02338519,89411.0,89410.0,0.001]
[1765717348147,0.04768519,89411.0,89410.0,0.001]
[1765717353706,0.00738519,89411.0,89410.0,0.00874]
[1765717353908,0.00738519,89411.0,89410.0,0.001]
[1765717354319,0.04747519,89411.0,89410.0,0.001]
[1765717354523,0.09749358,89411.0,89410.0,0.001]
[1765717354980,0.20955912,89411.0,89410.0,0.001]
[1765717355682,0.0111853,89403.0,89399.0,0.0111858]
[1765717355814,0.01118493,89406.0,89400.0,0.01118568]
[1765717355815,0.06120344,89405.0,89400.0,0.01118568]
[1765717356022,0.23489074,89404.0,89400.0,0.00161287]
[1765717356221,0.22370813,89403.0,89400.0,0.00161287]
[1765717356595,0.23489343,89403.0,89400.0,0.00161287]
[1765717356796,0.22371081,89402.0,89400.0,0.00161287]
[1765717357285,0.22371081,89402.0,89400.0,0.00261287]
[1765717357498,0.0111853,89403.0,89400.0,0.00261287]
[1765717357857,0.0131853,89403.0,89400.0,0.00261287]
[1765717358237,0.0131853,89403.0,89400.0,0.01379855]
[1765717358445,0.0131853,89403.0,89400.0,0.01279855]
[1765717358883,0.0161853,89403.0,89400.0,0.01379855]
[1765717359087,0.005,89403.0,89400.0,0.01379855]
[1765717359262,0.0161853,89403.0,89400.0,0.01379855]
[1765717359464,0.23989364,89403.0,89400.0,0.00261287]
[1765717360328,0.005,89403.0,89400.0,0.01379855]
[1765717360489,0.0161853,89403.0,89400.0,0.01379855]
[1765717360886,0.0161853,89403.0,89400.0,0.00261287]
[1765717361095,0.23989352,89403.0,89400.0,0.00261287]
[1765717362103,0.22371076,89402.0,89400.0,0.00261287]
[1765717363151,0.22371076,89402.0,89400.0,0.00161287]
[1765717363358,0.24948076,89402.0,89400.0,0.00161287]
[1765717363559,0.25248076,89402.0,89400.0,0.00261287]
[1765717366497,0.04009,89401.0,89400.0,0.00261287]
[1765717366675,0.04009,89401.0,89400.0,0.001]
[1765717367290,0.06805389,89401.0,89400.0,0.001]
[1765717367530,0.11807228,89401.0,89400.0,0.001]
[1765717367691,0.12007228,89401.0,89400.0,0.001]
[1765717367910,0.22372866,89394.0,89390.0,0.07894728]
[1765717368132,0.11206554,89393.0,89390.0,0.07894728]
[1765717369371,0.16520554,89393.0,89392.0,0.00624231]
[1765717370139,0.14143554,89393.0,89392.0,0.00624231]
[1765717370339,0.12511554,89393.0,89392.0,0.00624231]
[1765717370546,0.12511554,89393.0,89392.0,0.01124231]
[1765717370738,0.14143554,89393.0,89392.0,0.01124231]
[1765717371282,0.16520554,89393.0,89392.0,0.01124231]
[1765717371769,0.14143554,89393.0,89392.0,0.01124231]
[1765717372301,0.21522393,89393.0,89392.0,0.01124231]
[1765717373602,0.001,89393.0,89392.0,0.01285518]
[1765717373831,0.001,89393.0,89392.0,0.26394884]
[1765717379130,0.001,89393.0,89392.0,0.01285518]
[1765717379307,0.10223839,89393.0,89392.0,0.01124231]
[1765717381947,0.10223839,89393.0,89392.0,0.00624231]
[1765717382288,0.10123839,89393.0,89392.0,0.00424231]
[1765717382506,0.10223839,89393.0,89392.0,0.00524231]
[1765717384508,0.13020478,89393.0,89392.0,0.00524231]
[1765717389109,0.10223839,89393.0,89392.0,0.00524231]
[1765717389346,0.13020478,89393.0,89392.0,0.00524231]
[1765717394996,0.14784478,89393.0,89392.0,0.00524231]
[1765717398465,0.22374868,89386.0,89371.0,0.0002]
[1765717398614,0.30193707,89386.0,89371.0,0.0002]
[1765717398830,0.32498707,89386.0,89371.0,0.0002]
[1765717399649,0.32498707,89386.0,89372.0,0.01118918]
[1765717399650,0.34262707,89386.0,89372.0,0.01118918]
[1765717399866,0.34262707,89386.0,89371.0,0.01138931]
[1765717400069,0.32498707,89386.0,89372.0,0.01118918]
[1765717400269,0.32498707,89386.0,89373.0,0.01118906]
[1765717400454,0.34362707,89386.0,89377.0,0.00594]
[1765717400657,0.34262707,89386.0,89385.0,0.0014]
[1765717401109,0.34362707,89386.0,89385.0,0.0004]
[1765717401497,0.34362707,89386.0,89385.0,0.0024]
[1765717404876,0.03894,89385.0,89384.0,2.34e-06]
[1765717405071,0.37965839,89385.0,89384.0,2.34e-06]
[1765717405565,0.39729839,89385.0,89384.0,2.34e-06]
[1765717406837,0.39829839,89385.0,89384.0,2.34e-06]
[1765717407405,0.64249839,89385.0,89384.0,2.34e-06]
[1765717407613,0.66656639,89385.0,89384.0,2.34e-06]
[1765717407819,0.67701422,89385.0,89384.0,2.34e-06]
[1765717408338,0.54332349,89385.0,89384.0,2.34e-06]
[1765717409787,0.56450212,89372.0,89371.0,2.34e-06]
[1765717409939,0.05001839,89368.0,89355.0,0.07944078]
[1765717410140,0.30224464,89367.0,89355.0,0.07944078]
[1765717410701,0.32695464,89367.0,89355.0,0.07944078]
[1765717410975,0.32733959,89367.0,89355.0,0.07944078]
[1765717411794,0.32833959,89367.0,89355.0,0.07944078]
[1765717413653,0.92341776,89367.0,89355.0,0.07944078]
[1765717413852,0.56454219,89356.0,89355.0,0.07944078]
[1765717414057,0.61065219,89356.0,89355.0,0.07944078]
[1765717414258,0.63536219,89356.0,89355.0,0.07944078]
[1765717415052,0.63636219,89356.0,89355.0,0.07944078]
[1765717415844,0.22389897,89326.0,89318.0,0.01128595]
[1765717416202,0.22389897,89326.0,89325.0,0.00228853]
[1765717416203,0.29041736,89326.0,89325.0,0.00228853]
[1765717416399,0.31512736,89326.0,89325.0,0.00228853]
[1765717416743,0.31512736,89326.0,89289.0,0.01128595]
[1765717416744,0.23585153,89317.0,89304.0,0.0002]
[1765717416946,0.22395664,89303.0,89291.0,0.01119933]
[1765717417157,0.05001839,89303.0,89291.0,0.23518522]
[1765717417362,0.05001839,89303.0,89290.0,0.00931]
[1765717417363,0.05001839,89303.0,89302.0,0.03840287]
[1765717417566,0.01119745,89306.0,89302.0,0.01697287]
[1765717417801,0.05001839,89306.0,89302.0,0.01301082]
[1765717418182,0.001,89303.0,89302.0,0.00181287]
[1765717418389,0.22395605,89304.0,89302.0,0.00381287]
[1765717418594,0.0165,89303.0,89302.0,0.0022]
[1765717418840,0.09122839,89303.0,89302.0,0.0022]
[1765717419495,0.20329393,89303.0,89302.0,0.0022]
[1765717420313,0.20329393,89303.0,89302.0,0.0002]
[1765717420690,0.20429393,89303.0,89302.0,0.0042]
[1765717420872,0.20329393,89303.0,89302.0,0.0042]
[1765717421049,0.20329393,89303.0,89302.0,0.0002]
[1765717421254,0.20429393,89303.0,89302.0,0.0002]
[1765717421460,0.27398506,89299.0,89298.0,0.0799165]
[1765717421665,0.30816506,89299.0,89298.0,0.0799165]
[1765717421868,0.33287506,89299.0,89298.0,0.0799165]
[1765717422066,0.62357506,89299.0,89298.0,0.0799165]
[1765717423015,0.60589506,89299.0,89298.0,0.0799165]
[1765717423367,0.60589506,89299.0,89298.0,0.08073551]
[1765717423592,0.62361506,89299.0,89298.0,0.08073551]
[1765717424150,0.62461506,89299.0,89298.0,0.08073551]
[1765717424350,0.59990506,89299.0,89298.0,0.08073551]
[1765717424549,0.30920506,89299.0,89298.0,0.08173551]
[1765717424971,0.33391506,89299.0,89298.0,0.08173551]
[1765717427158,0.44442268,89299.0,89298.0,0.08173551]
[1765717427303,0.22402186,89277.0,89268.0,0.01120222]
[1765717427503,0.22402186,89277.0,89266.0,0.01120247]
[1765717427727,0.22402186,89277.0,89276.0,0.00086759]
[1765717428673,0.31563449,89277.0,89276.0,0.00086759]
[1765717429005,0.29092449,89277.0,89276.0,0.00086759]
[1765717429206,0.31563449,89277.0,89276.0,0.00086759]
[1765717429422,0.32063449,89277.0,89276.0,0.00186759]
[1765717430030,0.31863449,89277.0,89276.0,0.00086759]
[1765717430235,0.31563449,89277.0,89276.0,0.00286759]
[1765717430436,0.29092449,89277.0,89276.0,0.00286759]
[1765717430643,0.31663449,89277.0,89276.0,0.00286759]
[1765717431005,0.00138424,89277.0,89276.0,0.04107046]
[1765717431209,0.00138424,89277.0,89276.0,0.00448046]
[1765717432079,0.00138424,89277.0,89276.0,0.01964046]
[1765717432265,0.00138424,89277.0,89276.0,0.04107046]
[1765717432969,0.00138424,89277.0,89276.0,0.05195048]
[1765717433170,0.00138424,89277.0,89276.0,0.04995048]
[1765717433373,0.00038424,89277.0,89276.0,0.06867048]
[1765717433572,0.00538424,89277.0,89276.0,0.06867048]
[1765717433797,0.00838424,89277.0,89276.0,0.06867048]
[1765717434118,0.00038424,89277.0,89276.0,0.06767048]
[1765717434356,0.00338424,89277.0,89276.0,0.06767048]
[1765717434565,0.01119582,89319.0,89315.0,0.01119632]
[1765717434789,0.23511512,89318.0,89316.0,0.02143]
[1765717434990,0.01119507,89325.0,89321.0,0.01119557]
[1765717435187,0.01119444,89330.0,89324.0,0.01516]
[1765717435421,0.01119444,89330.0,89322.0,0.01119545]
[1765717435422,0.01119444,89330.0,89325.0,0.02635507]
[1765717435630,0.01119382,89335.0,89331.0,0.01119432]
[1765717435837,0.01119382,89335.0,89321.0,0.00161287]
[1765717435838,0.22390727,89323.0,89318.0,0.01119595]
[1765717436038,0.01119519,89324.0,89320.0,0.0111957]
[1765717436240,0.01119519,89324.0,89321.0,0.01119557]
[1765717436422,0.11206554,89322.0,89321.0,0.03262557]
[1765717436574,0.01119494,89326.0,89324.0,0.01623]
[1765717436792,0.01119494,89326.0,89325.0,0.001]
[1765717437188,0.01119494,89326.0,89324.0,0.01623]
[1765717437837,0.22390148,89325.0,89324.0,0.01623]
[1765717438036,0.01119557,89321.0,89317.0,0.01072]
[1765717438173,0.11206554,89320.0,89317.0,0.01072]
[1765717438373,0.34717525,89320.0,89317.0,0.01072]
[1765717438573,0.22392402,89317.0,89315.0,9.086e-05]
[1765717439561,0.01119557,89321.0,89316.0,0.03766]
[1765717439783,0.23510265,89323.0,89320.0,0.02695]
[1765717440003,0.01119582,89319.0,89317.0,0.01072]
[1765717440229,0.23511498,89318.0,89315.0,0.00109086]
[1765717440664,0.06540839,89316.0,89315.0,9.086e-05]
[1765717441094,0.08976839,89316.0,89315.0,9.086e-05]
[1765717441532,0.31369243,89316.0,89315.0,9.086e-05]
[1765717442145,0.61475776,89316.0,89315.0,8.6e-07]
[1765717442711,0.61475776,89316.0,89315.0,0.00100086]
[1765717443125,0.61475776,89316.0,89290.0,0.00024272]
[1765717443126,0.22398673,89291.0,89290.0,0.00024272]
[1765717443339,0.41165066,89291.0,89290.0,0.00035799]
[1765717443666,0.43601066,89291.0,89290.0,0.00035799]
[1765717444078,0.73708877,89291.0,89290.0,0.00035799]
[1765717444308,0.76101382,89291.0,89290.0,0.00035799]
[1765717444730,0.76201382,89291.0,89290.0,0.00535799]
[1765717445604,0.76301382,89291.0,89290.0,0.00635799]
[1765717446637,0.76302897,89291.0,89290.0,0.00635799]
[1765717447053,0.79292263,89291.0,89290.0,0.00635799]
[1765717447471,0.76302897,89291.0,89290.0,0.00635799]
[1765717447885,0.78074897,89291.0,89290.0,0.00635799]
[1765717448670,0.77974897,89291.0,89290.0,0.00535799]
[1765717449116,0.77974897,89291.0,89290.0,0.00635799]
[1765717449117,0.78074897,89291.0,89290.0,0.00635799]
[1765717449363,0.77974897,89291.0,89290.0,0.00135799]
[1765717449570,0.81962639,89291.0,89290.0,0.00135799]
[1765717449788,0.81962639,89291.0,89290.0,0.00235799]
[1765717450350,0.77974897,89291.0,89290.0,0.00235799]
[1765717450583,0.81962639,89291.0,89290.0,0.00235799]
[1765717450813,0.77974897,89291.0,89290.0,0.00235799]
[1765717452761,1.02394897,89291.0,89290.0,0.00235799]
[1765717454058,0.99958897,89291.0,89290.0,0.00235799]
[1765717454344,1.02394897,89291.0,89290.0,0.00235799]
[1765717456233,0.69349897,89291.0,89290.0,0.00235799]
[1765717456436,0.25309999,89291.0,89290.0,0.00235799]
[1765717456656,0.25309999,89291.0,89290.0,0.04163086]
[1765717456657,0.001,89291.0,89290.0,0.04163086]
[1765717457256,0.001,89291.0,89290.0,0.04063086]
[1765717458104,0.01119758,89305.0,89301.0,0.01119808]
[1765717458272,0.01119758,89305.0,89304.0,0.02695]
[1765717458712,0.01119758,89305.0,89304.0,0.04838]
[1765717459311,0.01119682,89311.0,89304.0,0.04999287]
[1765717459515,0.01119682,89311.0,89310.0,0.01623]
[1765717460109,0.23514566,89307.0,89304.0,0.01933287]
[1765717460434,0.23514566,89307.0,89304.0,0.01433287]
[1765717461237,0.11206554,89305.0,89304.0,0.01433287]
[1765717461409,0.17747393,89305.0,89304.0,0.002]
[1765717461617,0.20183393,89305.0,89304.0,0.002]
[1765717461833,0.01119833,89299.0,89295.0,0.01119883]
[1765717462012,0.01119858,89297.0,89294.0,0.01119896]
[1765717462359,0.01119858,89297.0,89294.0,0.01281183]
[1765717462849,0.01119845,89298.0,89294.0,0.01281183]
[1765717463008,0.01119845,89298.0,89295.0,0.001]
[1765717463533,0.01119858,89297.0,89294.0,0.00161287]
[1765717463917,0.22397419,89296.0,89294.0,0.00261287]
[1765717464335,0.01119858,89297.0,89295.0,0.01623]
[1765717464539,0.01119858,89297.0,89296.0,0.01623]
[1765717464737,0.01119795,89302.0,89297.0,0.01119858]
[1765717464961,0.01119758,89305.0,89301.0,0.03814808]
[1765717465286,0.01119707,89309.0,89304.0,0.0274277]
[1765717465460,0.01119733,89307.0,89306.0,0.01623]
[1765717466068,0.0111977,89304.0,89301.0,0.01233287]
[1765717466813,0.23515255,89304.0,89301.0,0.01233287]
[1765717467045,0.11206554,89302.0,89301.0,0.01233287]
[1765717467734,0.01119808,89301.0,89296.0,0.0111987]
[1765717467954,0.01119808,89301.0,89298.0,0.01119845]
[1765717468176,0.11206554,89302.0,89300.0,0.0166]
[1765717468782,0.2381529,89304.0,89301.0,0.05022808]
[1765717468783,0.007,89304.0,89301.0,0.05022808]
[1765717468999,0.004,89304.0,89303.0,0.0166]
[1765717469241,0.01119783,89303.0,89300.0,0.01281107]
[1765717469434,0.001,89302.0,89300.0,0.24077503]
[1765717469559,0.0111977,89304.0,89300.0,0.01281107]
[1765717469985,0.24215252,89304.0,89301.0,0.001]
[1765717470318,0.0141977,89304.0,89300.0,0.01281107]
[1765717470515,0.0141977,89304.0,89300.0,0.23677505]
[1765717471220,0.0111977,89304.0,89300.0,0.23677505]
[1765717471432,0.05001839,89306.0,89304.0,0.0111977]
[1765717471631,0.01119695,89310.0,89305.0,0.25174672]
[1765717471972,0.01119695,89310.0,89309.0,0.0166]
[1765717472517,0.001,89306.0,89304.0,0.00561287]
[1765717472719,0.01119833,89299.0,89296.0,0.0111987]
[1765717472936,0.22396592,89300.0,89297.0,0.01119858]
[1765717473143,0.01119808,89301.0,89298.0,0.01119845]
[1765717473346,0.01119795,89302.0,89298.0,0.01119845]
[1765717474011,0.01119845,89298.0,89295.0,0.01119883]
[1765717474221,0.0111982,89300.0,89295.0,0.01119883]
[1765717474394,0.01119858,89297.0,89293.0,0.02191908]
[1765717474595,0.01119795,89302.0,89298.0,0.01119845]
[1765717474796,0.35869742,89305.0,89299.0,0.23516411]
[1765717475203,0.01119783,89303.0,89299.0,0.01119833]
[1765717475431,0.002,89300.0,89299.0,0.235165]
[1765717476012,0.002,89300.0,89299.0,0.236165]
[1765717476216,0.01119795,89302.0,89296.0,0.0111987]
[1765717476217,0.01119808,89301.0,89296.0,0.0111987]
[1765717476417,0.0263782,89300.0,89297.0,0.01119858]
[1765717476622,0.0121982,89300.0,89299.0,0.001]
[1765717476819,0.01119808,89301.0,89297.0,0.23516806]
[1765717477206,0.23517402,89296.0,89293.0,0.01233287]
[1765717477494,0.0111987,89296.0,89295.0,0.0166]
[1765717478046,0.01119858,89297.0,89295.0,0.0166]
[1765717478227,0.01119858,89297.0,89293.0,0.24751169]
[1765717478432,0.0111987,89296.0,89293.0,0.02353195]
[1765717478859,0.0121987,89296.0,89295.0,0.005]
[1765717479058,0.0131987,89296.0,89295.0,0.009]
[1765717479263,0.0111987,89296.0,89293.0,0.02353195]
[1765717479644,0.0121987,89296.0,89293.0,0.02553195]
[1765717480064,0.0111987,89296.0,89293.0,0.02453195]
[1765717480242,0.0121987,89296.0,89295.0,0.004]
[1765717481264,0.001,89296.0,89295.0,0.004]
[1765717481489,0.002,89296.0,89295.0,0.009]
[1765717481919,0.001,89296.0,89295.0,0.005]
[1765717482114,0.001,89296.0,89295.0,0.00661287]
[1765717482327,0.002,89296.0,89295.0,0.00661287]
[1765717482624,0.001,89296.0,89295.0,0.02321287]
[1765717482825,0.002,89296.0,89295.0,0.02721287]
[1765717485261,0.22597419,89296.0,89295.0,0.02721287]
[1765717485445,0.22597419,89296.0,89295.0,0.01061287]
[1765717485955,0.24115419,89296.0,89295.0,0.01061287]
[1765717486155,0.26567419,89296.0,89295.0,0.01061287]
[1765717486359,0.31569258,89296.0,89295.0,0.009]
[1765717487721,0.002,89296.0,89295.0,0.0256]
[1765717487918,0.002,89296.0,89295.0,0.04864287]
[1765717488589,0.002,89296.0,89295.0,0.02721287]
[1765717489123,0.002,89296.0,89295.0,0.04864287]
[1765717491261,0.002,89296.0,89295.0,0.06238338]
[1765717491520,0.002,89296.0,89295.0,0.04864287]
[1765717495127,0.002,89296.0,89295.0,0.02721287]
[1765717495330,0.002,89296.0,89295.0,0.01061287]
[1765717495902,0.002,89296.0,89295.0,0.02721287]
[1765717496651,0.09175839,89296.0,89295.0,0.009]
[1765717497559,0.10947839,89296.0,89295.0,0.009]
[1765717499361,0.01972,89296.0,89295.0,0.009]
[1765717499569,0.06973839,89296.0,89295.0,0.009]
[1765717499907,0.05201839,89296.0,89295.0,0.02543]
[1765717500125,0.002,89296.0,89295.0,0.02543]
[1765717500325,0.002,89296.0,89295.0,0.04686]
[1765717500544,0.002,89296.0,89295.0,0.02543]
[1765717501516,0.002,89296.0,89295.0,0.04686]
[1765717501901,0.002,89296.0,89295.0,0.02704287]
[1765717502069,0.002,89296.0,89295.0,0.01061287]
[1765717503429,0.04174,89296.0,89295.0,0.01061287]
[1765717503631,0.04174,89296.0,89295.0,0.009]
[1765717503838,0.09175839,89296.0,89295.0,0.009]
[1765717504049,0.49452393,89296.0,89295.0,0.009]
[1765717504337,0.51852071,89296.0,89295.0,0.009]
[1765717504538,0.53624071,89296.0,89295.0,0.009]
[1765717504901,0.53524071,89296.0,89295.0,0.004]
[1765717505105,0.05001839,89292.0,89290.0,0.00035799]
[1765717505310,0.28998512,89291.0,89290.0,0.00035799]
[1765717505475,0.27400512,89291.0,89290.0,0.00035799]
[1765717507135,0.31374512,89291.0,89290.0,0.00335799]
[1765717508313,0.31474512,89291.0,89290.0,0.00535799]
[1765717509119,0.31374512,89291.0,89290.0,0.00035799]
[1765717509319,0.31474512,89291.0,89290.0,0.00135799]
[1765717509595,0.60544512,89291.0,89290.0,0.00235799]
[1765717513773,0.60544512,89291.0,89276.0,0.0002]
[1765717513774,0.27404025,89277.0,89276.0,0.0002]
[1765717513954,0.45458579,89277.0,89276.0,0.0003153]
[1765717515150,0.45558579,89277.0,89276.0,0.0023153]
[1765717515680,0.45558579,89277.0,89276.0,0.0063153]
[1765717519498,0.45558579,89277.0,89276.0,0.00674016]
[1765717520836,0.74628579,89277.0,89276.0,0.00674016]
[1765717523883,0.99048579,89277.0,89276.0,0.00674016]
[1765717524092,1.09660445,89277.0,89276.0,1.6e-07]
[1765717524274,1.09660445,89277.0,89239.0,0.02192586]
[1765717524275,0.01120674,89232.0,89216.0,0.02143]
[1765717524477,0.1409924,89231.0,89228.0,0.01120724]
[1765717524679,0.12978554,89231.0,89228.0,0.01282011]
[1765717525391,0.22410678,89244.0,89235.0,0.01120636]
[1765717525595,0.01772,89243.0,89242.0,0.2353152]
[1765717525789,0.01772,89243.0,89242.0,0.23692807]
[1765717526109,0.01772,89243.0,89242.0,0.25325807]
[1765717526992,0.0112051,89245.0,89242.0,0.25325807]
[1765717527211,0.0112051,89245.0,89242.0,0.01281835]
[1765717528072,0.0112051,89245.0,89242.0,0.00161287]
[1765717528196,0.001,89243.0,89242.0,0.00161287]
[1765717528410,0.001,89243.0,89242.0,0.00561287]
[1765717528922,0.01772,89244.0,89242.0,0.00161287]
[1765717529126,0.01120674,89232.0,89227.0,0.01120736]
[1765717529353,0.22412012,89238.0,89231.0,0.24046735]
[1765717529670,0.01120611,89237.0,89233.0,0.01120661]
[1765717529878,0.01120523,89244.0,89240.0,0.01120573]
[1765717530050,0.02892536,89243.0,89240.0,0.00161287]
[1765717530251,0.22411193,89242.0,89240.0,0.00161287]
[1765717530875,0.22411193,89242.0,89241.0,0.01072]
[1765717532174,0.001,89242.0,89241.0,0.2854086]
[1765717532521,0.001,89242.0,89241.0,0.06129848]
[1765717532718,0.001,89242.0,89241.0,0.05009287]
[1765717532923,0.001,89242.0,89241.0,0.02866287]
[1765717533377,0.22510972,89242.0,89241.0,0.01233287]
[1765717533578,0.22510972,89242.0,89241.0,0.00161287]
[1765717535307,0.24282972,89242.0,89241.0,0.00161287]
[1765717535779,0.24282972,89242.0,89241.0,0.0026755]
[1765717535959,0.28101972,89242.0,89241.0,0.00106263]
[1765717538321,0.33103811,89242.0,89241.0,0.00106263]
[1765717538538,0.30839811,89242.0,89241.0,0.00106263]
[1765717538737,0.33103811,89242.0,89241.0,0.00106263]
[1765717540488,0.62173811,89242.0,89241.0,0.00106263]
[1765717540691,0.22414739,89227.0,89226.0,0.00834536]
[1765717540904,0.43194132,89227.0,89226.0,0.00834536]
[1765717541135,0.40395132,89227.0,89226.0,0.00834536]
[1765717541339,0.17980393,89227.0,89226.0,0.00834536]
[1765717541566,0.01120711,89229.0,89226.0,0.00995823]
[1765717541735,0.01772,89227.0,89226.0,0.00995823]
[1765717541973,0.002,89227.0,89226.0,0.01395823]
[1765717542177,0.002,89227.0,89226.0,0.03028823]
[1765717542800,0.002,89227.0,89226.0,0.01395823]
[1765717542997,0.002,89227.0,89226.0,0.03028823]
[1765717543331,0.001,89227.0,89226.0,0.02628823]
[1765717543776,0.001,89227.0,89226.0,0.03028823]
[1765717544228,0.001,89227.0,89226.0,0.02628823]
[1765717544422,0.001,89227.0,89226.0,0.00995823]
[1765717544643,0.001,89227.0,89226.0,0.01395823]
[1765717544644,0.01755,89227.0,89226.0,0.01395823]
[1765717545055,0.002,89227.0,89226.0,0.01395823]
[1765717545276,0.002,89227.0,89226.0,0.03028823]
[1765717546228,0.002,89227.0,89226.0,0.03074381]
[1765717546451,0.002,89227.0,89226.0,0.06595762]
[1765717547565,0.002,89227.0,89226.0,0.05217381]
[1765717547766,0.002,89227.0,89226.0,0.01441381]
[1765717548172,0.09020839,89227.0,89226.0,0.01441381]
[1765717548378,0.10792839,89227.0,89226.0,0.01280094]
[1765717548619,0.08528839,89227.0,89226.0,0.01280094]
[1765717548910,0.10792839,89227.0,89226.0,0.01280094]
[1765717551567,0.06756839,89227.0,89226.0,0.01280094]
[1765717551770,0.05201839,89227.0,89226.0,0.01280094]
[1765717551932,0.06973839,89227.0,89226.0,0.01280094]
[1765717552142,0.002,89227.0,89226.0,0.27632372]
[1765717553343,0.001,89227.0,89226.0,0.27232372]
[1765717553725,0.005,89227.0,89226.0,0.27332372]
[1765717554231,0.004,89227.0,89226.0,0.25189372]
[1765717554441,0.01955,89227.0,89226.0,0.01141381]
[1765717554616,0.04819,89227.0,89226.0,0.01141381]
[1765717555451,0.02555,89227.0,89226.0,0.01141381]
[1765717556310,0.01,89227.0,89226.0,0.02642381]
[1765717556529,0.01,89227.0,89226.0,0.01141381]
[1765717556762,0.01,89227.0,89226.0,0.02642381]
[1765717557188,0.01,89227.0,89226.0,0.25057372]
[1765717557996,0.01,89227.0,89226.0,0.02642381]